Workbook

Sheet 汇总
A1: 岳阳县脱贫人口小额信贷2025年3季度贴息统计表
A2: 单位：元
A3: 序号 | B3: 贷款机构 | C3: 笔数 | D3: 贴息金额
A4: 1 | B4: 柏祥支行 | C4: =COUNTIFS(明细!B:B,"="&B4) -> 35 | D4: =SUMIFS(明细!J:J,明细!B:B,"="&B4) -> 7189.91
A5: 2 | B5: 步仙支行 | C5: =COUNTIFS(明细!B:B,"="&B5) -> 94 | D5: =SUMIFS(明细!J:J,明细!B:B,"="&B5) -> 34549.87
A6: 3 | B6: 城东支行 | C6: =COUNTIFS(明细!B:B,"="&B6) -> 23 | D6: =SUMIFS(明细!J:J,明细!B:B,"="&B6) -> 6415.77
A7: 4 | B7: 甘田支行 | C7: =COUNTIFS(明细!B:B,"="&B7) -> 48 | D7: =SUMIFS(明细!J:J,明细!B:B,"="&B7) -> 10675.51
A8: 5 | B8: 筻口支行 | C8: =COUNTIFS(明细!B:B,"="&B8) -> 4 | D8: =SUMIFS(明细!J:J,明细!B:B,"="&B8) -> 791.71
A9: 6 | B9: 公田支行 | C9: =COUNTIFS(明细!B:B,"="&B9) -> 25 | D9: =SUMIFS(明细!J:J,明细!B:B,"="&B9) -> 6934.12
A10: 7 | B10: 黄沙街支行 | C10: =COUNTIFS(明细!B:B,"="&B10) -> 28 | D10: =SUMIFS(明细!J:J,明细!B:B,"="&B10) -> 7902.98
A11: 8 | B11: 鹿角支行 | C11: =COUNTIFS(明细!B:B,"="&B11) -> 23 | D11: =SUMIFS(明细!J:J,明细!B:B,"="&B11) -> 7938.99
A12: 9 | B12: 毛田支行 | C12: =COUNTIFS(明细!B:B,"="&B12) -> 27 | D12: =SUMIFS(明细!J:J,明细!B:B,"="&B12) -> 9458.18
A13: 10 | B13: 新开支行 | C13: =COUNTIFS(明细!B:B,"="&B13) -> 67 | D13: =SUMIFS(明细!J:J,明细!B:B,"="&B13) -> 12795.09
A14: 11 | B14: 新墙支行 | C14: =COUNTIFS(明细!B:B,"="&B14) -> 39 | D14: =SUMIFS(明细!J:J,明细!B:B,"="&B14) -> 8070.81
A15: 12 | B15: 杨林支行 | C15: =COUNTIFS(明细!B:B,"="&B15) -> 16 | D15: =SUMIFS(明细!J:J,明细!B:B,"="&B15) -> 6190.38
A16: 13 | B16: 月田支行 | C16: =COUNTIFS(明细!B:B,"="&B16) -> 40 | D16: =SUMIFS(明细!J:J,明细!B:B,"="&B16) -> 7613.56
A17: 14 | B17: 张谷英支行 | C17: =COUNTIFS(明细!B:B,"="&B17) -> 78 | D17: =SUMIFS(明细!J:J,明细!B:B,"="&B17) -> 17244.82
A18: 15 | B18: 长湖支行 | C18: =COUNTIFS(明细!B:B,"="&B18) -> 50 | D18: =SUMIFS(明细!J:J,明细!B:B,"="&B18) -> 12779.02
A19: 16 | B19: 中洲支行 | C19: =COUNTIFS(明细!B:B,"="&B19) -> 37 | D19: =SUMIFS(明细!J:J,明细!B:B,"="&B19) -> 11146.27
B20: 总计 | C20: =SUM(C4:C19) -> 634 | D20: =SUM(D4:D19) -> 167696.99

Sheet 明细
A1: 岳阳县脱贫人口小额信贷2025年3季度贴息明细
A2: 单位：元
A3: 序号 | B3: 贷款机构 | C3: 客户名称 | D3: 借款日期 | E3: 到期日期 | F3: 贷款金额 | G3: 贷款余额 | H3: 利率% | I3: 结清日期 | J3: 贴息金额 | K3: 还款账户
A4: 1 | B4: 柏祥支行 | C4: 谢细红 | D4: 2024-07-29 | E4: 2025-07-29 | F4: 50000 | G4: 0 | H4: 3.35 | I4: 2025-07-25 | J4: 116.32 | K4: 81012150075306833
A5: 2 | B5: 柏祥支行 | C5: 何小林 | D5: 2024-07-29 | E5: 2025-07-29 | F5: 50000 | G5: 0 | H5: 3.35 | I5: 2025-07-25 | J5: 116.32 | K5: 81012150008989034
A6: 3 | B6: 柏祥支行 | C6: 于小林 | D6: 2024-07-30 | E6: 2025-07-30 | F6: 50000 | G6: 0 | H6: 3.35 | I6: 2025-07-25 | J6: 116.32 | K6: 81012150005707010
A7: 4 | B7: 柏祥支行 | C7: 唐爱秋 | D7: 2024-07-31 | E7: 2025-07-31 | F7: 50000 | G7: 0 | H7: 3.35 | I7: 2025-07-28 | J7: 130.28 | K7: 81012150005717245
A8: 5 | B8: 柏祥支行 | C8: 谭珍荣 | D8: 2024-07-31 | E8: 2025-07-31 | F8: 50000 | G8: 0 | H8: 3.35 | I8: 2025-07-29 | J8: 134.93 | K8: 81012150005841057
A9: 6 | B9: 柏祥支行 | C9: 蒋贤伍 | D9: 2024-07-31 | E9: 2025-07-31 | F9: 50000 | G9: 0 | H9: 3.35 | I9: 2025-07-29 | J9: 134.93 | K9: 81012150008894255
A10: 7 | B10: 柏祥支行 | C10: 唐荣辉 | D10: 2024-07-31 | E10: 2025-07-31 | F10: 50000 | G10: 0 | H10: 3.35 | I10: 2025-07-28 | J10: 130.28 | K10: 81012150005703059
A11: 8 | B11: 柏祥支行 | C11: 蒋作旺 | D11: 2024-08-01 | E11: 2025-08-01 | F11: 50000 | G11: 0 | H11: 3.35 | I11: 2025-07-29 | J11: 134.93 | K11: 81012150004796783
A12: 9 | B12: 柏祥支行 | C12: 谢东平 | D12: 2024-08-01 | E12: 2025-08-01 | F12: 50000 | G12: 0 | H12: 3.35 | I12: 2025-07-31 | J12: 144.24 | K12: 81012150005825557
A13: 10 | B13: 柏祥支行 | C13: 黄四梅 | D13: 2024-08-01 | E13: 2025-08-01 | F13: 50000 | G13: 0 | H13: 3.35 | I13: 2025-07-28 | J13: 130.28 | K13: 81012150005711094
A14: 11 | B14: 柏祥支行 | C14: 杨海燕 | D14: 2024-08-01 | E14: 2025-08-01 | F14: 50000 | G14: 0 | H14: 3.35 | I14: 2025-07-28 | J14: 130.28 | K14: 81012150005703560
A15: 12 | B15: 柏祥支行 | C15: 袁林 | D15: 2024-08-02 | E15: 2025-08-02 | F15: 50000 | G15: 0 | H15: 3.35 | I15: 2025-08-01 | J15: 148.89 | K15: 81012150005826265
A16: 13 | B16: 柏祥支行 | C16: 谢克成 | D16: 2024-08-05 | E16: 2025-08-05 | F16: 50000 | G16: 0 | H16: 3.35 | I16: 2025-07-31 | J16: 144.24 | K16: 81012150011998556
A17: 14 | B17: 柏祥支行 | C17: 杨昭平 | D17: 2024-08-05 | E17: 2025-08-05 | F17: 50000 | G17: 0 | H17: 3.35 | I17: 2025-07-31 | J17: 144.24 | K17: 81012150005832111
A18: 15 | B18: 柏祥支行 | C18: 杨波 | D18: 2024-08-09 | E18: 2025-08-08 | F18: 50000 | G18: 0 | H18: 3.35 | I18: 2025-07-31 | J18: 144.24 | K18: 81012150012000047
A19: 16 | B19: 柏祥支行 | C19: 杨滔滔 | D19: 2024-08-27 | E19: 2025-08-27 | F19: 45000 | G19: 0 | H19: 3.35 | I19: 2025-08-27 | J19: 242.88 | K19: 81012150075134817
A20: 17 | B20: 柏祥支行 | C20: 敖树山 | D20: 2024-08-28 | E20: 2025-08-28 | F20: 50000 | G20: 0 | H20: 3.35 | I20: 2025-08-27 | J20: 269.86 | K20: 81012150178148100
A21: 18 | B21: 柏祥支行 | C21: 杨敏 | D21: 2024-08-28 | E21: 2025-08-28 | F21: 50000 | G21: 0 | H21: 3.35 | I21: 2025-08-27 | J21: 269.86 | K21: 81012150011229761
A22: 19 | B22: 柏祥支行 | C22: 周四勇 | D22: 2024-09-18 | E22: 2025-09-18 | F22: 50000 | G22: 0 | H22: 3.35 | I22: 2025-09-17 | J22: 367.57 | K22: 81012150005649171
A23: 20 | B23: 柏祥支行 | C23: 胡祖宋 | D23: 2024-09-18 | E23: 2025-09-18 | F23: 50000 | G23: 0 | H23: 3.35 | I23: 2025-09-17 | J23: 367.57 | K23: 81012150005649308
A24: 21 | B24: 柏祥支行 | C24: 曾细广 | D24: 2024-09-27 | E24: 2025-09-27 | F24: 18000 | G24: 0 | H24: 3.35 | I24: 2025-09-26 | J24: 147.40 | K24: 81012150012000387
A25: 22 | B25: 柏祥支行 | C25: 杨丹 | D25: 2024-10-14 | E25: 2025-10-14 | F25: 24000 | G25: 0 | H25: 3.35 | I25: 2025-07-04 | J25: 8.93 | K25: 81012150112114778
A26: 23 | B26: 柏祥支行 | C26: 刘高辉 | D26: 2025-05-19 | E26: 2025-12-19 | F26: 50000 | G26: 50000 | H26: 3.1 | J26: 396.11 | K26: 81012150011928384
A27: 24 | B27: 柏祥支行 | C27: 蒋琼 | D27: 2025-05-21 | E27: 2025-12-21 | F27: 50000 | G27: 50000 | H27: 3 | J27: 383.33 | K27: 81012150156195097
A28: 25 | B28: 柏祥支行 | C28: 谢细红 | D28: 2025-07-28 | E28: 2025-12-28 | F28: 50000 | G28: 50000 | H28: 3 | J28: 270.83 | K28: 81012150075306833
A29: 26 | B29: 柏祥支行 | C29: 黄四梅 | D29: 2025-07-29 | E29: 2025-12-29 | F29: 50000 | G29: 50000 | H29: 3 | J29: 266.67 | K29: 81012150005711094
A30: 27 | B30: 柏祥支行 | C30: 杨海燕 | D30: 2025-07-29 | E30: 2025-12-29 | F30: 50000 | G30: 50000 | H30: 3 | J30: 266.67 | K30: 81012150005703560
A31: 28 | B31: 柏祥支行 | C31: 唐爱秋 | D31: 2025-07-29 | E31: 2025-12-29 | F31: 50000 | G31: 50000 | H31: 3 | J31: 266.67 | K31: 81012150005717245
A32: 29 | B32: 柏祥支行 | C32: 谭珍荣 | D32: 2025-07-30 | E32: 2025-12-30 | F32: 50000 | G32: 50000 | H32: 3 | J32: 262.50 | K32: 81012150005841057
A33: 30 | B33: 柏祥支行 | C33: 蒋贤伍 | D33: 2025-07-30 | E33: 2025-12-30 | F33: 50000 | G33: 50000 | H33: 3 | J33: 262.50 | K33: 81012150008894255
A34: 31 | B34: 柏祥支行 | C34: 蒋作旺 | D34: 2025-07-30 | E34: 2025-12-30 | F34: 50000 | G34: 50000 | H34: 3 | J34: 262.50 | K34: 81012150004796783
A35: 32 | B35: 柏祥支行 | C35: 唐荣辉 | D35: 2025-07-30 | E35: 2025-12-30 | F35: 50000 | G35: 50000 | H35: 3 | J35: 262.50 | K35: 81012150005703059
A36: 33 | B36: 柏祥支行 | C36: 杨昭平 | D36: 2025-08-01 | E36: 2025-12-28 | F36: 50000 | G36: 50000 | H36: 3 | J36: 254.17 | K36: 81012150005832111
A37: 34 | B37: 柏祥支行 | C37: 谢克成 | D37: 2025-08-04 | E37: 2025-12-28 | F37: 50000 | G37: 50000 | H37: 3 | J37: 241.67 | K37: 81012150011998556
A38: 35 | B38: 柏祥支行 | C38: 杨滔滔 | D38: 2025-08-28 | E38: 2025-12-28 | F38: 42000 | G38: 42000 | H38: 3 | J38: 119.00 | K38: 81012150075134817
A39: 36 | B39: 步仙支行 | C39: 胡争辉 | D39: 2022-07-05 | E39: 2025-07-05 | F39: 50000 | G39: 0 | H39: 4.15 | I39: 2025-07-05 | J39: 28.82 | K39: 81012150100646513
A40: 37 | B40: 步仙支行 | C40: 李凤莲 | D40: 2022-07-06 | E40: 2025-07-06 | F40: 50000 | G40: 0 | H40: 4.15 | I40: 2025-07-05 | J40: 28.82 | K40: 81012150131747855
A41: 38 | B41: 步仙支行 | C41: 胡嘉琪 | D41: 2022-07-13 | E41: 2025-07-13 | F41: 20000 | G41: 0 | H41: 4.15 | I41: 2025-07-01 | J41: 2.31 | K41: 81012150214553196
A42: 39 | B42: 步仙支行 | C42: 邹宗顺 | D42: 2022-07-20 | E42: 2025-07-20 | F42: 50000 | G42: 0 | H42: 4.15 | I42: 2025-07-18 | J42: 103.75 | K42: 81012150005954810
A43: 40 | B43: 步仙支行 | C43: 毛岭 | D43: 2022-07-20 | E43: 2025-07-20 | F43: 50000 | G43: 0 | H43: 4.15 | I43: 2025-07-20 | J43: 115.28 | K43: 81012150009902459
A44: 41 | B44: 步仙支行 | C44: 吴守义 | D44: 2022-08-05 | E44: 2025-08-05 | F44: 50000 | G44: 0 | H44: 4.15 | I44: 2025-07-03 | J44: 17.29 | K44: 81012150163722118
A45: 42 | B45: 步仙支行 | C45: 胡德保 | D45: 2022-08-17 | E45: 2025-08-17 | F45: 50000 | G45: 0 | H45: 4.15 | I45: 2025-09-30 | J45: 276.67 | K45: 81012150012150786
A46: 43 | B46: 步仙支行 | C46: 邹年伍 | D46: 2022-08-18 | E46: 2025-08-18 | F46: 50000 | G46: 0 | H46: 4.15 | I46: 2025-08-14 | J46: 259.38 | K46: 81012150012148621
A47: 44 | B47: 步仙支行 | C47: 王敖本 | D47: 2022-08-19 | E47: 2025-08-19 | F47: 50000 | G47: 0 | H47: 4.15 | I47: 2025-08-18 | J47: 282.43 | K47: 81012150012152252
A48: 45 | B48: 步仙支行 | C48: 邹方军 | D48: 2022-08-20 | E48: 2025-08-20 | F48: 50000 | G48: 0 | H48: 4.15 | I48: 2025-08-14 | J48: 259.38 | K48: 81012150165433408
A49: 46 | B49: 步仙支行 | C49: 续克 | D49: 2022-08-23 | E49: 2025-08-23 | F49: 50000 | G49: 0 | H49: 4 | I49: 2025-08-18 | J49: 272.22 | K49: 81012150009048700
A50: 47 | B50: 步仙支行 | C50: 付正平 | D50: 2022-08-29 | E50: 2025-08-29 | F50: 50000 | G50: 0 | H50: 4 | I50: 2025-08-18 | J50: 272.22 | K50: 81012150012152615
A51: 48 | B51: 步仙支行 | C51: 李美龙 | D51: 2022-08-29 | E51: 2025-08-29 | F51: 50000 | G51: 0 | H51: 4 | I51: 2025-08-21 | J51: 288.89 | K51: 81012150136025584
A52: 49 | B52: 步仙支行 | C52: 邹志福 | D52: 2022-09-16 | E52: 2025-09-16 | F52: 50000 | G52: 0 | H52: 4 | I52: 2025-09-29 | J52: 433.33 | K52: 81012150012137028
A53: 50 | B53: 步仙支行 | C53: 邹元辉 | D53: 2022-09-20 | E53: 2025-09-20 | F53: 50000 | G53: 0 | H53: 4 | I53: 2025-09-12 | J53: 411.11 | K53: 81012150012152376
A54: 51 | B54: 步仙支行 | C54: 陈国娥 | D54: 2022-09-29 | E54: 2025-09-29 | F54: 50000 | G54: 0 | H54: 4 | I54: 2025-09-29 | J54: 505.56 | K54: 81012150195720598
A55: 52 | B55: 步仙支行 | C55: 王兴 | D55: 2022-10-11 | E55: 2025-10-11 | F55: 50000 | G55: 50000 | H55: 4 | J55: 511.11 | K55: 81012150218921204
A56: 53 | B56: 步仙支行 | C56: 邹洪桥 | D56: 2022-10-12 | E56: 2025-10-12 | F56: 50000 | G56: 0 | H56: 4 | I56: 2025-09-08 | J56: 388.89 | K56: 81012150012062844
A57: 54 | B57: 步仙支行 | C57: 毛盾国 | D57: 2022-10-12 | E57: 2025-10-12 | F57: 50000 | G57: 0 | H57: 4 | I57: 2025-09-30 | J57: 511.11 | K57: 81012150132190959
A58: 55 | B58: 步仙支行 | C58: 吴新华 | D58: 2022-10-14 | E58: 2025-10-14 | F58: 50000 | G58: 50000 | H58: 4 | J58: 511.11 | K58: 81012150011989143
A59: 56 | B59: 步仙支行 | C59: 邹小雄 | D59: 2022-10-18 | E59: 2025-10-18 | F59: 50000 | G59: 50000 | H59: 4 | J59: 511.11 | K59: 81012150012129062
A60: 57 | B60: 步仙支行 | C60: 蒋仕根 | D60: 2022-10-25 | E60: 2025-10-25 | F60: 50000 | G60: 50000 | H60: 4 | J60: 511.11 | K60: 81012150037816908
A61: 58 | B61: 步仙支行 | C61: 毛传基 | D61: 2022-10-27 | E61: 2025-10-27 | F61: 50000 | G61: 50000 | H61: 4 | J61: 511.11 | K61: 81012150012064068
A62: 59 | B62: 步仙支行 | C62: 陈美粮 | D62: 2022-11-08 | E62: 2025-11-08 | F62: 50000 | G62: 50000 | H62: 4 | J62: 511.11 | K62: 81012150101654874
A63: 60 | B63: 步仙支行 | C63: 邹海雁 | D63: 2022-11-13 | E63: 2025-11-13 | F63: 50000 | G63: 50000 | H63: 4 | J63: 511.11 | K63: 81012150036475707
A64: 61 | B64: 步仙支行 | C64: 杨再兴 | D64: 2022-11-14 | E64: 2025-11-14 | F64: 50000 | G64: 50000 | H64: 4 | J64: 511.11 | K64: 81012150011931170
A65: 62 | B65: 步仙支行 | C65: 李会明 | D65: 2022-11-22 | E65: 2025-11-22 | F65: 50000 | G65: 50000 | H65: 4 | J65: 511.11 | K65: 81012150009920354
A66: 63 | B66: 步仙支行 | C66: 周美爱 | D66: 2022-11-22 | E66: 2025-11-22 | F66: 50000 | G66: 50000 | H66: 4 | J66: 511.11 | K66: 81012150011973541
A67: 64 | B67: 步仙支行 | C67: 唐生辉 | D67: 2022-12-22 | E67: 2025-12-22 | F67: 50000 | G67: 50000 | H67: 4 | J67: 511.11 | K67: 81012150012072206
A68: 65 | B68: 步仙支行 | C68: 刘红光 | D68: 2022-12-26 | E68: 2025-12-26 | F68: 50000 | G68: 50000 | H68: 4 | J68: 511.11 | K68: 81012150012075047
A69: 66 | B69: 步仙支行 | C69: 林宝龙 | D69: 2022-12-27 | E69: 2025-12-27 | F69: 50000 | G69: 50000 | H69: 4 | J69: 511.11 | K69: 81012150001229489
A70: 67 | B70: 步仙支行 | C70: 胡三平 | D70: 2023-01-09 | E70: 2026-01-09 | F70: 50000 | G70: 50000 | H70: 4 | J70: 511.11 | K70: 81012150072453485
A71: 68 | B71: 步仙支行 | C71: 付伟 | D71: 2023-01-17 | E71: 2026-01-17 | F71: 50000 | G71: 50000 | H71: 4 | J71: 511.11 | K71: 81012150080903149
A72: 69 | B72: 步仙支行 | C72: 李磊 | D72: 2023-01-18 | E72: 2026-01-18 | F72: 10000 | G72: 10000 | H72: 4 | J72: 102.22 | K72: 81012150012038822
A73: 70 | B73: 步仙支行 | C73: 邹龙 | D73: 2023-01-18 | E73: 2026-01-18 | F73: 50000 | G73: 50000 | H73: 4 | J73: 511.11 | K73: 81012150012131627
A74: 71 | B74: 步仙支行 | C74: 胡密方 | D74: 2023-03-13 | E74: 2026-03-13 | F74: 50000 | G74: 50000 | H74: 4 | J74: 511.11 | K74: 81012150011941098
A75: 72 | B75: 步仙支行 | C75: 杨根华 | D75: 2023-03-22 | E75: 2026-03-22 | F75: 50000 | G75: 50000 | H75: 4 | J75: 511.11 | K75: 81012150012151600
A76: 73 | B76: 步仙支行 | C76: 颜朝霞 | D76: 2023-05-09 | E76: 2026-05-09 | F76: 50000 | G76: 50000 | H76: 4 | J76: 511.11 | K76: 81012150012141998
A77: 74 | B77: 步仙支行 | C77: 邹栽田 | D77: 2023-06-07 | E77: 2026-06-07 | F77: 50000 | G77: 50000 | H77: 4 | J77: 511.11 | K77: 81012150012149975
A78: 75 | B78: 步仙支行 | C78: 邹红艳 | D78: 2023-07-11 | E78: 2026-07-11 | F78: 50000 | G78: 50000 | H78: 3.9 | J78: 498.33 | K78: 81012150012151009
A79: 76 | B79: 步仙支行 | C79: 李银霞 | D79: 2023-09-22 | E79: 2026-09-22 | F79: 50000 | G79: 50000 | H79: 3.9 | J79: 498.33 | K79: 81012150012084245
A80: 77 | B80: 步仙支行 | C80: 邓送生 | D80: 2023-09-22 | E80: 2026-09-22 | F80: 50000 | G80: 50000 | H80: 3.9 | J80: 498.33 | K80: 81012150152409752
A81: 78 | B81: 步仙支行 | C81: 周常娥 | D81: 2023-09-22 | E81: 2026-09-22 | F81: 50000 | G81: 50000 | H81: 3.9 | J81: 498.33 | K81: 81012150152411999
A82: 79 | B82: 步仙支行 | C82: 胡友根 | D82: 2023-09-22 | E82: 2026-09-22 | F82: 50000 | G82: 50000 | H82: 3.9 | J82: 498.33 | K82: 81012150012144401
A83: 80 | B83: 步仙支行 | C83: 康双凤 | D83: 2023-09-22 | E83: 2026-09-22 | F83: 50000 | G83: 50000 | H83: 3.9 | J83: 498.33 | K83: 81012150012136353
A84: 81 | B84: 步仙支行 | C84: 付雪锋 | D84: 2023-09-25 | E84: 2026-09-25 | F84: 50000 | G84: 50000 | H84: 3.9 | J84: 498.33 | K84: 81012150152401301
A85: 82 | B85: 步仙支行 | C85: 陈春梅 | D85: 2023-09-27 | E85: 2026-09-27 | F85: 50000 | G85: 50000 | H85: 3.9 | J85: 498.33 | K85: 81012150012148202
A86: 83 | B86: 步仙支行 | C86: 袁福兴 | D86: 2023-10-26 | E86: 2026-10-26 | F86: 50000 | G86: 50000 | H86: 3.9 | J86: 498.33 | K86: 81012150012141727
A87: 84 | B87: 步仙支行 | C87: 李增 | D87: 2023-11-06 | E87: 2026-11-06 | F87: 50000 | G87: 50000 | H87: 3.9 | J87: 498.33 | K87: 81012150200641486
A88: 85 | B88: 步仙支行 | C88: 续群放 | D88: 2023-12-11 | E88: 2025-12-11 | F88: 50000 | G88: 50000 | H88: 3.9 | J88: 498.33 | K88: 81012150112966697
A89: 86 | B89: 步仙支行 | C89: 刘志辉 | D89: 2023-12-20 | E89: 2026-12-20 | F89: 30000 | G89: 30000 | H89: 3.9 | J89: 299.00 | K89: 81012150183228704
A90: 87 | B90: 步仙支行 | C90: 彭瑞辉 | D90: 2023-12-21 | E90: 2025-12-21 | F90: 50000 | G90: 50000 | H90: 3.9 | J90: 498.33 | K90: 81012150202164602
A91: 88 | B91: 步仙支行 | C91: 毛志兴 | D91: 2023-12-21 | E91: 2026-12-21 | F91: 50000 | G91: 50000 | H91: 3.9 | J91: 498.33 | K91: 81012150012793998
A92: 89 | B92: 步仙支行 | C92: 汤迪观 | D92: 2024-01-09 | E92: 2027-01-09 | F92: 50000 | G92: 50000 | H92: 3.9 | J92: 498.33 | K92: 81012150011832726
A93: 90 | B93: 步仙支行 | C93: 陈兴旺 | D93: 2024-01-17 | E93: 2027-01-17 | F93: 50000 | G93: 50000 | H93: 3.9 | J93: 498.33 | K93: 81012150012117295
A94: 91 | B94: 步仙支行 | C94: 陈飞龙 | D94: 2024-01-19 | E94: 2027-01-19 | F94: 50000 | G94: 50000 | H94: 3.9 | J94: 498.33 | K94: 81012150012146124
A95: 92 | B95: 步仙支行 | C95: 胡小四 | D95: 2024-02-02 | E95: 2027-02-02 | F95: 50000 | G95: 50000 | H95: 3.9 | J95: 498.33 | K95: 81012150150980274
A96: 93 | B96: 步仙支行 | C96: 付志峰 | D96: 2024-02-04 | E96: 2027-02-04 | F96: 50000 | G96: 50000 | H96: 3.9 | J96: 498.33 | K96: 81012150151121063
A97: 94 | B97: 步仙支行 | C97: 吴想平 | D97: 2024-02-06 | E97: 2027-02-06 | F97: 50000 | G97: 50000 | H97: 3.9 | J97: 498.33 | K97: 81012150079369801
A98: 95 | B98: 步仙支行 | C98: 彭兴良 | D98: 2024-06-03 | E98: 2027-06-03 | F98: 50000 | G98: 50000 | H98: 3.65 | J98: 466.39 | K98: 81012150012047666
A99: 96 | B99: 步仙支行 | C99: 喻运求 | D99: 2024-06-25 | E99: 2027-06-25 | F99: 50000 | G99: 50000 | H99: 3.65 | J99: 466.39 | K99: 81012150012062447
A100: 97 | B100: 步仙支行 | C100: 杨超 | D100: 2024-08-15 | E100: 2027-08-15 | F100: 50000 | G100: 50000 | H100: 3.55 | J100: 453.61 | K100: 81012150139959645
A101: 98 | B101: 步仙支行 | C101: 莫绍群 | D101: 2024-08-16 | E101: 2027-08-16 | F101: 50000 | G101: 0 | H101: 3.55 | I101: 2025-07-24 | J101: 118.33 | K101: 81012150012135485
A102: 99 | B102: 步仙支行 | C102: 龙静 | D102: 2024-08-16 | E102: 2027-08-16 | F102: 50000 | G102: 0 | H102: 3.55 | I102: 2025-07-24 | J102: 118.33 | K102: 81012150012152864
A103: 100 | B103: 步仙支行 | C103: 毛七祥 | D103: 2024-08-16 | E103: 2027-08-16 | F103: 50000 | G103: 0 | H103: 3.55 | I103: 2025-07-23 | J103: 113.40 | K103: 81012150217115014
A104: 101 | B104: 步仙支行 | C104: 邓爱军 | D104: 2024-08-16 | E104: 2027-08-16 | F104: 50000 | G104: 0 | H104: 3.55 | I104: 2025-07-22 | J104: 108.47 | K104: 81012150009893012
A105: 102 | B105: 步仙支行 | C105: 邹伟华 | D105: 2024-08-16 | E105: 2027-08-16 | F105: 50000 | G105: 0 | H105: 3.55 | I105: 2025-07-22 | J105: 108.47 | K105: 81012150005966905
A106: 103 | B106: 步仙支行 | C106: 付桂芳 | D106: 2024-08-16 | E106: 2027-08-16 | F106: 50000 | G106: 0 | H106: 3.55 | I106: 2025-07-23 | J106: 113.40 | K106: 81012150005970897
A107: 104 | B107: 步仙支行 | C107: 袁红霞 | D107: 2024-08-16 | E107: 2027-08-16 | F107: 50000 | G107: 0 | H107: 3.55 | I107: 2025-07-22 | J107: 108.47 | K107: 81012150012149691
A108: 105 | B108: 步仙支行 | C108: 万大际 | D108: 2024-08-16 | E108: 2027-08-16 | F108: 50000 | G108: 0 | H108: 3.55 | I108: 2025-07-24 | J108: 118.33 | K108: 81012150009912231
A109: 106 | B109: 步仙支行 | C109: 陈三连 | D109: 2024-08-19 | E109: 2027-08-19 | F109: 50000 | G109: 0 | H109: 3.55 | I109: 2025-09-22 | J109: 414.17 | K109: 81012150005923304
A110: 107 | B110: 步仙支行 | C110: 张仕元 | D110: 2024-08-19 | E110: 2027-08-19 | F110: 50000 | G110: 0 | H110: 3.55 | I110: 2025-07-23 | J110: 113.40 | K110: 81012150012132586
A111: 108 | B111: 步仙支行 | C111: 邹柳兵 | D111: 2024-08-20 | E111: 2027-08-20 | F111: 50000 | G111: 0 | H111: 3.55 | I111: 2025-07-23 | J111: 113.40 | K111: 81012150012037908
A112: 109 | B112: 步仙支行 | C112: 龙美华 | D112: 2024-08-20 | E112: 2027-08-20 | F112: 50000 | G112: 0 | H112: 3.55 | I112: 2025-09-22 | J112: 414.17 | K112: 81012150012062991
A113: 110 | B113: 步仙支行 | C113: 付依满 | D113: 2024-08-20 | E113: 2027-08-20 | F113: 50000 | G113: 0 | H113: 3.55 | I113: 2025-07-23 | J113: 113.40 | K113: 81012150005968823
A114: 111 | B114: 步仙支行 | C114: 邓中秋 | D114: 2024-08-20 | E114: 2027-08-20 | F114: 50000 | G114: 0 | H114: 3.55 | I114: 2025-07-23 | J114: 113.40 | K114: 81012150108851615
A115: 112 | B115: 步仙支行 | C115: 张六生 | D115: 2024-08-26 | E115: 2026-08-26 | F115: 50000 | G115: 50000 | H115: 3.55 | J115: 453.61 | K115: 81012150012151010
A116: 113 | B116: 步仙支行 | C116: 王仕金 | D116: 2024-08-26 | E116: 2027-08-26 | F116: 50000 | G116: 0 | H116: 3.55 | I116: 2025-07-23 | J116: 113.40 | K116: 81012150008876473
A117: 114 | B117: 步仙支行 | C117: 唐五荣 | D117: 2024-08-28 | E117: 2025-08-28 | F117: 50000 | G117: 0 | H117: 3.35 | I117: 2025-07-23 | J117: 107.01 | K117: 81012150217052903
A118: 115 | B118: 步仙支行 | C118: 陈小林 | D118: 2024-08-28 | E118: 2025-08-28 | F118: 50000 | G118: 0 | H118: 3.35 | I118: 2025-07-23 | J118: 107.01 | K118: 81012150005860749
A119: 116 | B119: 步仙支行 | C119: 陈军山 | D119: 2024-09-05 | E119: 2027-09-05 | F119: 50000 | G119: 50000 | H119: 3.55 | J119: 453.61 | K119: 81012150208924614
A120: 117 | B120: 步仙支行 | C120: 邹进良 | D120: 2024-09-18 | E120: 2027-09-18 | F120: 50000 | G120: 50000 | H120: 3.55 | J120: 453.61 | K120: 81012150107326278
A121: 118 | B121: 步仙支行 | C121: 李田中 | D121: 2024-11-11 | E121: 2027-11-11 | F121: 50000 | G121: 50000 | H121: 3.3 | J121: 421.67 | K121: 81012150011988275
A122: 119 | B122: 步仙支行 | C122: 邹仲秋 | D122: 2024-12-11 | E122: 2027-12-11 | F122: 50000 | G122: 50000 | H122: 3.3 | J122: 421.67 | K122: 81012150201703839
A123: 120 | B123: 步仙支行 | C123: 周羊生 | D123: 2024-12-30 | E123: 2027-12-30 | F123: 50000 | G123: 50000 | H123: 3.3 | J123: 421.67 | K123: 81012150223546950
A124: 121 | B124: 步仙支行 | C124: 胡勇朝 | D124: 2025-01-03 | E124: 2025-12-30 | F124: 50000 | G124: 50000 | H124: 3.1 | J124: 396.11 | K124: 81012150012079472
A125: 122 | B125: 步仙支行 | C125: 陈谷军 | D125: 2025-03-03 | E125: 2025-12-03 | F125: 50000 | G125: 50000 | H125: 3.1 | J125: 396.11 | K125: 81012150012063086
A126: 123 | B126: 步仙支行 | C126: 邓军民 | D126: 2025-03-07 | E126: 2025-12-07 | F126: 50000 | G126: 50000 | H126: 3.1 | J126: 396.11 | K126: 81012150012143702
A127: 124 | B127: 步仙支行 | C127: 邹红日 | D127: 2025-04-23 | E127: 2025-12-23 | F127: 50000 | G127: 50000 | H127: 3.1 | J127: 396.11 | K127: 81012150012136863
A128: 125 | B128: 步仙支行 | C128: 陈再满 | D128: 2025-06-13 | E128: 2025-12-13 | F128: 50000 | G128: 50000 | H128: 3 | J128: 383.33 | K128: 81012150012151258
A129: 126 | B129: 步仙支行 | C129: 邹梓林 | D129: 2025-06-16 | E129: 2025-12-16 | F129: 50000 | G129: 50000 | H129: 3 | J129: 383.33 | K129: 81012150005995653
A130: 127 | B130: 步仙支行 | C130: 胡望群 | D130: 2025-06-20 | E130: 2025-12-20 | F130: 50000 | G130: 50000 | H130: 3 | J130: 383.33 | K130: 81012150007201503
A131: 128 | B131: 步仙支行 | C131: 肖鑫 | D131: 2025-06-21 | E131: 2025-12-21 | F131: 50000 | G131: 50000 | H131: 3 | J131: 383.33 | K131: 81012150189246206
A132: 129 | B132: 步仙支行 | C132: 李凤莲 | D132: 2025-07-08 | E132: 2025-12-08 | F132: 50000 | G132: 50000 | H132: 3 | J132: 354.17 | K132: 81012150131747855
A133: 130 | B133: 城东支行 | C133: 王振 | D133: 2024-08-24 | E133: 2025-08-24 | F133: 50000 | G133: 0 | H133: 3.35 | I133: 2025-08-27 | J133: 255.90 | K133: 81012150009295239
A134: 131 | B134: 城东支行 | C134: 姜秀芝 | D134: 2024-09-08 | E134: 2025-09-08 | F134: 50000 | G134: 0 | H134: 3.35 | I134: 2025-09-08 | J134: 325.69 | K134: 81012150005045816
A135: 132 | B135: 城东支行 | C135: 任冬改 | D135: 2024-09-08 | E135: 2025-09-08 | F135: 50000 | G135: 0 | H135: 3.35 | I135: 2025-09-08 | J135: 325.69 | K135: 81012150001224141
A136: 133 | B136: 城东支行 | C136: 付垸保 | D136: 2024-09-11 | E136: 2025-09-11 | F136: 50000 | G136: 0 | H136: 3.35 | I136: 2025-09-11 | J136: 339.65 | K136: 81012150009296662
A137: 134 | B137: 城东支行 | C137: 付岳华 | D137: 2024-09-20 | E137: 2025-09-20 | F137: 50000 | G137: 0 | H137: 3.35 | I137: 2025-09-19 | J137: 376.88 | K137: 81012150009270542
A138: 135 | B138: 城东支行 | C138: 王团生 | D138: 2024-09-24 | E138: 2025-09-24 | F138: 50000 | G138: 0 | H138: 3.35 | I138: 2025-09-17 | J138: 367.57 | K138: 81012150009290172
A139: 136 | B139: 城东支行 | C139: 彭湘平 | D139: 2024-09-28 | E139: 2025-09-28 | F139: 50000 | G139: 0 | H139: 3.35 | I139: 2025-09-25 | J139: 404.79 | K139: 81012150009296764
A140: 137 | B140: 城东支行 | C140: 任江桥 | D140: 2024-10-04 | E140: 2025-10-04 | F140: 18000 | G140: 18000 | H140: 3.35 | J140: 154.10 | K140: 81012150000179059
A141: 138 | B141: 城东支行 | C141: 许红军 | D141: 2024-10-12 | E141: 2025-10-12 | F141: 50000 | G141: 50000 | H141: 3.35 | J141: 428.06 | K141: 81012150009291530
A142: 139 | B142: 城东支行 | C142: 欧阳丽娟 | D142: 2024-10-16 | E142: 2025-10-16 | F142: 40000 | G142: 40000 | H142: 3.35 | J142: 342.44 | K142: 81012150178588301
A143: 140 | B143: 城东支行 | C143: 许明 | D143: 2024-10-30 | E143: 2025-10-30 | F143: 50000 | G143: 50000 | H143: 3.1 | J143: 396.11 | K143: 81012150009288175
A144: 141 | B144: 城东支行 | C144: 许栀 | D144: 2024-11-11 | E144: 2025-11-11 | F144: 49000 | G144: 49000 | H144: 3.1 | J144: 388.19 | K144: 81012150220304491
A145: 142 | B145: 城东支行 | C145: 胡淑华 | D145: 2024-11-29 | E145: 2025-11-29 | F145: 50000 | G145: 50000 | H145: 3.1 | J145: 396.11 | K145: 81012150104379631
A146: 143 | B146: 城东支行 | C146: 吴广 | D146: 2025-01-23 | E146: 2025-12-23 | F146: 50000 | G146: 50000 | H146: 3.1 | J146: 396.11 | K146: 81012150009297984
A147: 144 | B147: 城东支行 | C147: 任港 | D147: 2025-03-27 | E147: 2025-12-20 | F147: 50000 | G147: 50000 | H147: 3.1 | J147: 396.11 | K147: 81012150009135615
A148: 145 | B148: 城东支行 | C148: 彭荣军 | D148: 2025-04-22 | E148: 2025-12-22 | F148: 50000 | G148: 50000 | H148: 3.1 | J148: 396.11 | K148: 81012150008741774
A149: 146 | B149: 城东支行 | C149: 杨小菊 | D149: 2025-07-04 | E149: 2025-12-31 | F149: 35000 | G149: 35000 | H149: 3 | J149: 259.58 | K149: 81012150009058978
A150: 147 | B150: 城东支行 | C150: 王振 | D150: 2025-08-28 | E150: 2025-12-28 | F150: 50000 | G150: 50000 | H150: 3 | J150: 141.67 | K150: 81012150009295239
A151: 148 | B151: 城东支行 | C151: 姜秀芝 | D151: 2025-09-09 | E151: 2025-12-31 | F151: 50000 | G151: 50000 | H151: 3 | J151: 91.67 | K151: 81012150005045816
A152: 149 | B152: 城东支行 | C152: 任冬改 | D152: 2025-09-09 | E152: 2025-12-31 | F152: 50000 | G152: 50000 | H152: 3 | J152: 91.67 | K152: 81012150001224141
A153: 150 | B153: 城东支行 | C153: 付垸保 | D153: 2025-09-15 | E153: 2025-12-31 | F153: 50000 | G153: 50000 | H153: 3 | J153: 66.67 | K153: 81012150009296662
A154: 151 | B154: 城东支行 | C154: 付岳华 | D154: 2025-09-19 | E154: 2025-12-31 | F154: 50000 | G154: 50000 | H154: 3 | J154: 50.00 | K154: 81012150009270542
A155: 152 | B155: 城东支行 | C155: 彭湘平 | D155: 2025-09-25 | E155: 2025-12-31 | F155: 50000 | G155: 50000 | H155: 3 | J155: 25.00 | K155: 81012150009296764
A156: 153 | B156: 甘田支行 | C156: 高建雄 | D156: 2024-07-03 | E156: 2025-07-03 | F156: 50000 | G156: 0 | H156: 3.45 | I156: 2025-07-01 | J156: 4.79 | K156: 81012150223402805
A157: 154 | B157: 甘田支行 | C157: 蒋谷良 | D157: 2024-07-17 | E157: 2025-07-17 | F157: 50000 | G157: 0 | H157: 3.45 | I157: 2025-07-15 | J157: 71.88 | K157: 81012150012523308
A158: 155 | B158: 甘田支行 | C158: 左仲生 | D158: 2024-07-18 | E158: 2025-07-18 | F158: 50000 | G158: 0 | H158: 3.45 | I158: 2025-07-15 | J158: 71.88 | K158: 81012150009829137
A159: 156 | B159: 甘田支行 | C159: 谭书荣 | D159: 2024-07-19 | E159: 2025-07-19 | F159: 50000 | G159: 0 | H159: 3.45 | I159: 2025-07-18 | J159: 86.25 | K159: 81012150006658072
A160: 157 | B160: 甘田支行 | C160: 彭小兵 | D160: 2024-07-24 | E160: 2025-07-24 | F160: 28000 | G160: 28000 | H160: 3.35 | J160: 62.53 | K160: 81012150012450565
A161: 158 | B161: 甘田支行 | C161: 易望辉 | D161: 2024-07-24 | E161: 2025-07-24 | F161: 50000 | G161: 0 | H161: 3.35 | I161: 2025-07-24 | J161: 111.67 | K161: 81012150130178547
A162: 159 | B162: 甘田支行 | C162: 易细平 | D162: 2024-07-24 | E162: 2025-07-24 | F162: 50000 | G162: 0 | H162: 3.35 | I162: 2025-07-23 | J162: 107.01 | K162: 81012150012485690
A163: 160 | B163: 甘田支行 | C163: 高天龙 | D163: 2024-07-24 | E163: 2025-07-24 | F163: 50000 | G163: 0 | H163: 3.35 | I163: 2025-07-24 | J163: 111.67 | K163: 81012150012490542
A164: 161 | B164: 甘田支行 | C164: 任立新 | D164: 2024-07-24 | E164: 2025-07-24 | F164: 50000 | G164: 0 | H164: 3.35 | I164: 2025-07-23 | J164: 107.01 | K164: 81012150166127570
A165: 162 | B165: 甘田支行 | C165: 周小梅 | D165: 2024-07-24 | E165: 2025-07-24 | F165: 50000 | G165: 0 | H165: 3.35 | I165: 2025-07-24 | J165: 111.67 | K165: 81012150006590407
A166: 163 | B166: 甘田支行 | C166: 彭泽伍 | D166: 2024-07-26 | E166: 2025-07-26 | F166: 50000 | G166: 0 | H166: 3.35 | I166: 2025-07-26 | J166: 120.97 | K166: 81012150009004182
A167: 164 | B167: 甘田支行 | C167: 高尖 | D167: 2024-07-29 | E167: 2025-07-29 | F167: 50000 | G167: 0 | H167: 3.35 | I167: 2025-07-28 | J167: 130.28 | K167: 81012150223405691
A168: 165 | B168: 甘田支行 | C168: 周环宇 | D168: 2024-08-05 | E168: 2025-08-05 | F168: 50000 | G168: 0 | H168: 3.35 | I168: 2025-07-13 | J168: 60.49 | K168: 81012150012526434
A169: 166 | B169: 甘田支行 | C169: 高用民 | D169: 2024-08-07 | E169: 2025-08-07 | F169: 50000 | G169: 0 | H169: 3.35 | I169: 2025-08-06 | J169: 172.15 | K169: 81012150006618607
A170: 167 | B170: 甘田支行 | C170: 刘林锋 | D170: 2024-08-08 | E170: 2025-08-08 | F170: 50000 | G170: 0 | H170: 3.35 | I170: 2025-08-11 | J170: 181.46 | K170: 81012150165344813
A171: 168 | B171: 甘田支行 | C171: 李升辉 | D171: 2024-08-09 | E171: 2025-08-09 | F171: 50000 | G171: 0 | H171: 3.35 | I171: 2025-08-07 | J171: 176.81 | K171: 81012150195385718
A172: 169 | B172: 甘田支行 | C172: 杨三军 | D172: 2024-08-13 | E172: 2025-08-13 | F172: 50000 | G172: 0 | H172: 3.35 | I172: 2025-08-13 | J172: 204.72 | K172: 81012150139265818
A173: 170 | B173: 甘田支行 | C173: 廖健民 | D173: 2024-08-28 | E173: 2025-08-28 | F173: 50000 | G173: 0 | H173: 3.35 | I173: 2025-08-19 | J173: 232.64 | K173: 81012150012488523
A174: 171 | B174: 甘田支行 | C174: 彭水龙 | D174: 2024-08-29 | E174: 2025-08-29 | F174: 50000 | G174: 0 | H174: 3.35 | I174: 2025-08-30 | J174: 279.17 | K174: 81012150006597038
A175: 172 | B175: 甘田支行 | C175: 周艮姣 | D175: 2024-08-30 | E175: 2025-08-30 | F175: 50000 | G175: 0 | H175: 3.35 | I175: 2025-08-31 | J175: 283.82 | K175: 81012150117556109
A176: 173 | B176: 甘田支行 | C176: 廖良新 | D176: 2024-09-25 | E176: 2025-09-25 | F176: 26000 | G176: 0 | H176: 3.35 | I176: 2025-09-25 | J176: 210.49 | K176: 81012150012523976
A177: 174 | B177: 甘田支行 | C177: 刘小英 | D177: 2024-11-15 | E177: 2025-11-15 | F177: 50000 | G177: 50000 | H177: 3.1 | J177: 396.11 | K177: 81012150181897416
A178: 175 | B178: 甘田支行 | C178: 汤良辉 | D178: 2025-01-06 | E178: 2026-01-06 | F178: 50000 | G178: 50000 | H178: 3.1 | J178: 396.11 | K178: 81012150223826007
A179: 176 | B179: 甘田支行 | C179: 高洪波 | D179: 2025-01-06 | E179: 2026-01-06 | F179: 50000 | G179: 50000 | H179: 3.1 | J179: 396.11 | K179: 81012150100973196
A180: 177 | B180: 甘田支行 | C180: 高光君 | D180: 2025-01-07 | E180: 2026-01-07 | F180: 50000 | G180: 50000 | H180: 3.1 | J180: 396.11 | K180: 81012150147303435
A181: 178 | B181: 甘田支行 | C181: 李满意 | D181: 2025-01-07 | E181: 2026-01-07 | F181: 50000 | G181: 50000 | H181: 3.1 | J181: 396.11 | K181: 81012150176480036
A182: 179 | B182: 甘田支行 | C182: 方新顺 | D182: 2025-01-08 | E182: 2026-01-08 | F182: 50000 | G182: 50000 | H182: 3.1 | J182: 396.11 | K182: 81012150012518526
A183: 180 | B183: 甘田支行 | C183: 左小毛 | D183: 2025-01-21 | E183: 2026-01-21 | F183: 50000 | G183: 50000 | H183: 3.1 | J183: 396.11 | K183: 81012150012520421
A184: 181 | B184: 甘田支行 | C184: 刘胜平 | D184: 2025-02-13 | E184: 2025-12-13 | F184: 30000 | G184: 0 | H184: 3.1 | I184: 2025-09-04 | J184: 170.50 | K184: 81012150012473526
A185: 182 | B185: 甘田支行 | C185: 彭小红 | D185: 2025-03-12 | E185: 2025-12-12 | F185: 40000 | G185: 40000 | H185: 3.1 | J185: 316.89 | K185: 81012150176907749
A186: 183 | B186: 甘田支行 | C186: 李水波 | D186: 2025-03-19 | E186: 2025-12-19 | F186: 35000 | G186: 35000 | H186: 3.1 | J186: 277.28 | K186: 81012150012499227
A187: 184 | B187: 甘田支行 | C187: 高钻 | D187: 2025-03-26 | E187: 2025-12-26 | F187: 50000 | G187: 50000 | H187: 3.1 | J187: 396.11 | K187: 81012150012521298
A188: 185 | B188: 甘田支行 | C188: 李和 | D188: 2025-04-29 | E188: 2025-12-29 | F188: 50000 | G188: 50000 | H188: 3.1 | J188: 396.11 | K188: 81012150012523068
A189: 186 | B189: 甘田支行 | C189: 任佳怡 | D189: 2025-05-06 | E189: 2025-12-06 | F189: 25000 | G189: 25000 | H189: 3.1 | J189: 198.06 | K189: 81012150223392840
A190: 187 | B190: 甘田支行 | C190: 方贤良 | D190: 2025-05-06 | E190: 2025-12-06 | F190: 20000 | G190: 20000 | H190: 3.1 | J190: 158.44 | K190: 81012150012521152
A191: 188 | B191: 甘田支行 | C191: 高建雄 | D191: 2025-07-01 | E191: 2025-12-01 | F191: 50000 | G191: 50000 | H191: 3 | J191: 383.33 | K191: 81012150223402805
A192: 189 | B192: 甘田支行 | C192: 左仲生 | D192: 2025-07-16 | E192: 2025-12-16 | F192: 50000 | G192: 50000 | H192: 3 | J192: 320.83 | K192: 81012150009829137
A193: 190 | B193: 甘田支行 | C193: 蒋谷良 | D193: 2025-07-16 | E193: 2025-12-16 | F193: 50000 | G193: 50000 | H193: 3 | J193: 320.83 | K193: 81012150012523308
A194: 191 | B194: 甘田支行 | C194: 任立新 | D194: 2025-07-23 | E194: 2025-12-23 | F194: 40000 | G194: 40000 | H194: 3 | J194: 233.33 | K194: 81012150166127570
A195: 192 | B195: 甘田支行 | C195: 易细平 | D195: 2025-07-23 | E195: 2025-12-23 | F195: 50000 | G195: 50000 | H195: 3 | J195: 291.67 | K195: 81012150012485690
A196: 193 | B196: 甘田支行 | C196: 易望辉 | D196: 2025-07-25 | E196: 2025-12-25 | F196: 50000 | G196: 50000 | H196: 3 | J196: 283.33 | K196: 81012150130178547
A197: 194 | B197: 甘田支行 | C197: 周小梅 | D197: 2025-07-25 | E197: 2025-12-25 | F197: 50000 | G197: 50000 | H197: 3 | J197: 283.33 | K197: 81012150006590407
A198: 195 | B198: 甘田支行 | C198: 高用伍 | D198: 2025-07-29 | E198: 2025-12-29 | F198: 50000 | G198: 50000 | H198: 3 | J198: 266.67 | K198: 81012150006616961
A199: 196 | B199: 甘田支行 | C199: 高尖 | D199: 2025-08-04 | E199: 2025-12-04 | F199: 50000 | G199: 50000 | H199: 3 | J199: 241.67 | K199: 81012150223405691
A200: 197 | B200: 甘田支行 | C200: 杨三军 | D200: 2025-08-14 | E200: 2025-12-14 | F200: 50000 | G200: 50000 | H200: 3 | J200: 200.00 | K200: 81012150139265818
... 437 more rows
